[Event "Tournoi de MI de l'Echiquier du Pays de Bray"]
[Site "Gournay-en-Bray, France"]
[Date "2023.05.15"]
[Round "2.4"]
[White "HÖGLAUER, Patrick"]
[Black "NIKCEVIC, Nebosja"]
[Result "0-1"]
[TimeControl "1h30/40 + 30 (30s/c)"]
[WhiteTitle "FM"]
[BlackTitle "GM"]
[WhiteFideId "1270548"]
[BlackFideId "901776"]
[WhiteElo "2280"]
[BlackElo "2373"]

1. d4 {[%clk 01:30:57]} {[%emt 00:00:02]} Nf6 {[%clk 01:30:27]} {[%emt
00:00:33]} 2. c4 {[%clk 01:31:22]} {[%emt 00:00:05]} e6 {[%clk 01:30:08]}
{[%emt 00:00:48]} 3. Nc3 {[%clk 01:31:20]} {[%emt 00:00:33]} Bb4 {[%clk
01:30:20]} {[%emt 00:00:17]} 4. e3 {[%clk 01:31:43]} {[%emt 00:00:07]} c5
{[%clk 01:29:55]} {[%emt 00:00:54]} 5. Nge2 {[%clk 01:31:30]} {[%emt 00:00:45]}
b6 {[%clk 01:27:32]} {[%emt 00:02:52]} 6. a3 {[%clk 01:30:13]} {[%emt
00:01:47]} Ba5 {[%clk 01:27:22]} {[%emt 00:00:40]} 7. Qa4 {[%clk 01:30:16]}
{[%emt 00:00:27]} Nc6 {[%clk 01:24:57]} {[%emt 00:02:54]} 8. g3 {[%clk
01:12:32]} {[%emt 00:18:13]} Ne4 {[%clk 01:17:31]} {[%emt 00:07:55]} 9. Bg2
{[%clk 01:03:17]} {[%emt 00:09:46]} Nxc3 {[%clk 01:17:55]} {[%emt 00:00:07]} 10.
bxc3 {[%clk 00:59:41]} {[%emt 00:04:06]} cxd4 {[%clk 01:16:23]} {[%emt
00:02:02]} 11. exd4 {[%clk 00:59:47]} {[%emt 00:00:24]} O-O {[%clk 01:16:11]}
{[%emt 00:00:41]} 12. O-O {[%clk 00:55:04]} {[%emt 00:05:13]} Ba6 {[%clk
01:16:17]} {[%emt 00:00:24]} 13. d5 {[%clk 00:40:03]} {[%emt 00:15:30]} Ne5
{[%clk 01:15:22]} {[%emt 00:01:24]} 14. Bf4 {[%clk 00:39:16]} {[%emt 00:01:18]}
Nxc4 {[%clk 01:15:08]} {[%emt 00:00:43]} 15. dxe6 {[%clk 00:39:03]} {[%emt
00:00:43]} fxe6 {[%clk 01:13:46]} {[%emt 00:01:52]} 16. Bxa8 {[%clk 00:38:15]}
{[%emt 00:01:18]} Qxa8 {[%clk 01:09:43]} {[%emt 00:04:33]} 17. Qxd7 {[%clk
00:37:08]} {[%emt 00:01:37]} e5 {[%clk 01:10:05]} {[%emt 00:00:07]} 18. Rfd1
{[%clk 00:20:25]} {[%emt 00:17:13]} exf4 {[%clk 00:53:16]} {[%emt 00:17:20]} 19.
Nxf4 {[%clk 00:20:53]} {[%emt 00:00:02]} Ne5 {[%clk 00:41:08]} {[%emt
00:12:37]} 20. Qe6+ {[%clk 00:20:53]} {[%emt 00:00:31]} Nf7 {[%clk 00:41:29]}
{[%emt 00:00:08]} 21. Nd5 {[%clk 00:18:21]} {[%emt 00:03:02]} Kh8 {[%clk
00:39:50]} {[%emt 00:02:09]} 22. Nc7 {[%clk 00:13:30]} {[%emt 00:05:21]} Ng5
{[%clk 00:35:58]} {[%emt 00:04:21]} 23. Nxa8 {[%clk 00:06:04]} {[%emt
00:07:58]} Nxe6 {[%clk 00:36:20]} {[%emt 00:00:07]} 24. Rd6 {[%clk 00:06:12]}
{[%emt 00:00:23]} Bc4 {[%clk 00:34:05]} {[%emt 00:02:45]} 25. Nc7 {[%clk
00:02:50]} {[%emt 00:03:52]} Nxc7 {[%clk 00:34:03]} {[%emt 00:00:32]} 26. Rc6
{[%clk 00:03:16]} {[%emt 00:00:03]} b5 {[%clk 00:34:21]} {[%emt 00:00:12]} 0-1

[Event "Tournoi de MI de l'Echiquier du Pays de Bray"]
[Site "Gournay-en-Bray, France"]
[Date "2023.05.15"]
[Round "2.5"]
[White "TEREKHOV, Andrey"]
[Black "DUBESSAY, Bastien"]
[Result "1/2-1/2"]
[TimeControl "1h30/40 + 30 (30s/c)"]
[WhiteTitle "FM"]
[BlackTitle "FM"]
[WhiteFideId "4121481"]
[BlackFideId "650048"]
[WhiteElo "2314"]
[BlackElo "2283"]

1. d4 {[%clk 01:30:57]} {[%emt 00:00:02]} Nf6 {[%clk 01:30:51]} {[%emt
00:00:09]} 2. c4 {[%clk 01:31:12]} {[%emt 00:00:15]} e6 {[%clk 01:31:12]}
{[%emt 00:00:08]} 3. Nf3 {[%clk 01:31:30]} {[%emt 00:00:12]} d5 {[%clk
01:31:35]} {[%emt 00:00:07]} 4. g3 {[%clk 01:31:56]} {[%emt 00:00:05]} dxc4
{[%clk 01:31:55]} {[%emt 00:00:09]} 5. Bg2 {[%clk 01:32:02]} {[%emt 00:00:24]}
a6 {[%clk 01:32:17]} {[%emt 00:00:08]} 6. Ne5 {[%clk 01:31:58]} {[%emt
00:00:34]} Bb4+ {[%clk 01:32:03]} {[%emt 00:00:45]} 7. Nc3 {[%clk 01:31:40]}
{[%emt 00:00:48]} Nd5 {[%clk 01:32:02]} {[%emt 00:00:31]} 8. O-O {[%clk
01:31:41]} {[%emt 00:00:29]} O-O {[%clk 01:32:19]} {[%emt 00:00:12]} 9. Ne4
{[%clk 01:31:32]} {[%emt 00:00:39]} b5 {[%clk 01:32:10]} {[%emt 00:00:39]} 10.
b3 {[%clk 01:31:37]} {[%emt 00:00:26]} cxb3 {[%clk 01:32:33]} {[%emt 00:00:06]}
11. axb3 {[%clk 01:31:28]} {[%emt 00:00:09]} Bb7 {[%clk 01:32:57]} {[%emt
00:00:06]} 12. Nd3 {[%clk 01:31:05]} {[%emt 00:01:23]} Nd7 {[%clk 01:31:49]}
{[%emt 00:01:38]} 13. Nxb4 {[%clk 01:28:11]} {[%emt 00:03:25]} Nxb4 {[%clk
01:30:00]} {[%emt 00:02:19]} 14. Bg5 {[%clk 01:27:12]} {[%emt 00:01:28]} Qe8
{[%clk 01:21:38]} {[%emt 00:08:52]} 15. Nd6 {[%clk 01:20:40]} {[%emt 00:07:03]}
cxd6 {[%clk 01:21:49]} {[%emt 00:00:19]} 16. Bxb7 {[%clk 01:21:05]} {[%emt
00:00:05]} Ra7 {[%clk 01:20:12]} {[%emt 00:02:07]} 17. Bd2 {[%clk 01:17:53]}
{[%emt 00:03:41]} Nd5 {[%clk 01:01:08]} {[%emt 00:19:34]} 18. Bc6 {[%clk
01:00:29]} {[%emt 00:17:55]} Qb8 {[%clk 00:53:52]} {[%emt 00:07:45]} 1/2-1/2

[ePGN "0.1;DGT LiveChess/2.2.5"]

[Event "Tournoi de MI de l'Echiquier du Pays de Bray"]
[Site "Gournay-en-Bray, France"]
[Date "2023.05.16"]
[Round "3.1"]
[White "NIKCEVIC, Nebosja"]
[Black "TEREKHOV, Andrey"]
[Result "1-0"]
[TimeControl "1h30/40 + 30 (30s/c)"]
[WhiteTitle "GM"]
[BlackTitle "FM"]
[WhiteFideId "901776"]
[BlackFideId "4121481"]
[WhiteElo "2373"]
[BlackElo "2314"]

1. d4 {[%clk 01:30:57]} {[%emt 00:00:03]} Nf6 {[%clk 01:30:52]} {[%emt
00:00:09]} 2. Nf3 {[%clk 01:31:21]} {[%emt 00:00:05]} d5 {[%clk 01:31:09]}
{[%emt 00:00:13]} 3. c4 {[%clk 01:31:39]} {[%emt 00:00:12]} e6 {[%clk
01:31:35]} {[%emt 00:00:05]} 4. Nc3 {[%clk 01:31:49]} {[%emt 00:00:20]} Bb4
{[%clk 01:31:58]} {[%emt 00:00:07]} 5. Qa4+ {[%clk 01:24:38]} {[%emt 00:07:41]}
Nc6 {[%clk 01:32:11]} {[%emt 00:00:17]} 6. e3 {[%clk 01:12:06]} {[%emt
00:13:01]} O-O {[%clk 01:31:51]} {[%emt 00:00:51]} 7. Bd2 {[%clk 01:12:20]}
{[%emt 00:00:15]} dxc4 {[%clk 01:26:21]} {[%emt 00:06:00]} 8. Bxc4 {[%clk
01:12:03]} {[%emt 00:00:47]} a6 {[%clk 01:26:41]} {[%emt 00:00:10]} 9. Qc2
{[%clk 00:55:49]} {[%emt 00:16:43]} Bd6 {[%clk 01:25:12]} {[%emt 00:01:59]} 10.
Ne4 {[%clk 00:55:01]} {[%emt 00:01:17]} Nb4 {[%clk 01:15:41]} {[%emt 00:10:02]}
11. Bxb4 {[%clk 00:48:02]} {[%emt 00:07:29]} Bxb4+ {[%clk 01:14:52]} {[%emt
00:01:18]} 12. Ke2 {[%clk 00:48:26]} {[%emt 00:00:05]} Nxe4 {[%clk 00:46:30]}
{[%emt 00:28:53]} 13. Qxe4 {[%clk 00:47:40]} {[%emt 00:01:15]} Bd6 {[%clk
00:45:48]} {[%emt 00:01:13]} 14. h4 {[%clk 00:44:39]} {[%emt 00:03:31]} Qf6
{[%clk 00:40:20]} {[%emt 00:05:59]} 15. Ng5 {[%clk 00:34:41]} {[%emt 00:10:28]}
Qf5 {[%clk 00:39:17]} {[%emt 00:01:33]} 16. Bd3 {[%clk 00:33:24]} {[%emt
00:01:46]} h6 {[%clk 00:33:47]} {[%emt 00:06:00]} 17. g4 {[%clk 00:33:19]}
{[%emt 00:00:34]} Qxe4 {[%clk 00:33:46]} {[%emt 00:00:32]} 18. Nxe4 {[%clk
00:33:44]} {[%emt 00:00:05]} e5 {[%clk 00:18:55]} {[%emt 00:15:22]} 19. g5
{[%clk 00:24:20]} {[%emt 00:09:53]} Bf5 {[%clk 00:14:11]} {[%emt 00:05:14]} 20.
Nxd6 {[%clk 00:19:31]} {[%emt 00:05:19]} Bxd3+ {[%clk 00:14:22]} {[%emt
00:00:19]} 21. Kxd3 {[%clk 00:19:54]} {[%emt 00:00:06]} cxd6 {[%clk 00:14:48]}
{[%emt 00:00:04]} 22. gxh6 {[%clk 00:20:14]} {[%emt 00:00:10]} gxh6 {[%clk
00:13:58]} {[%emt 00:01:20]} 23. Rhg1+ {[%clk 00:20:03]} {[%emt 00:00:42]} Kh7
{[%clk 00:13:57]} {[%emt 00:00:31]} 24. Rac1 {[%clk 00:20:16]} {[%emt
00:00:17]} exd4 {[%clk 00:10:38]} {[%emt 00:03:49]} 25. Kxd4 {[%clk 00:20:03]}
{[%emt 00:00:42]} Rac8 {[%clk 00:09:25]} {[%emt 00:01:44]} 26. Kd5 {[%clk
00:10:36]} {[%emt 00:09:57]} Rfd8 {[%clk 00:08:17]} {[%emt 00:01:38]} 27. b4
{[%clk 00:08:14]} {[%emt 00:02:52]} Rxc1 {[%clk 00:03:20]} {[%emt 00:05:27]} 28.
Rxc1 {[%clk 00:08:36]} {[%emt 00:00:08]} Rd7 {[%clk 00:03:49]} 29. Rg1 {[%clk
00:08:17]} {[%emt 00:00:48]} Rc7 {[%clk 00:01:55]} {[%emt 00:02:24]} 30. Kxd6
{[%clk 00:05:54]} {[%emt 00:02:52]} Rc2 {[%clk 00:02:10]} {[%emt 00:00:16]} 31.
f4 {[%clk 00:06:16]} {[%emt 00:00:09]} Rxa2 {[%clk 00:02:12]} {[%emt 00:00:28]}
32. Ke7 {[%clk 00:06:33]} {[%emt 00:00:13]} Rb2 {[%clk 00:01:34]} {[%emt
00:01:08]} 33. Kxf7 {[%clk 00:05:02]} {[%emt 00:02:01]} Rxb4 {[%clk 00:02:01]}
{[%emt 00:00:04]} 34. Rg7 {[%clk 00:03:12]} {[%emt 00:02:19]} Kh8 {[%clk
00:02:28]} {[%emt 00:00:03]} 35. Rg8+ {[%clk 00:03:34]} {[%emt 00:00:09]} Kh7
{[%clk 00:02:54]} {[%emt 00:00:04]} 36. Rg7 {[%clk 00:03:57]} {[%emt 00:00:06]}
Kh8 {[%clk 00:03:21]} {[%emt 00:00:04]} 37. Rg6 {[%clk 00:04:08]} {[%emt
00:00:18]} Kh7 {[%clk 00:03:45]} {[%emt 00:00:06]} 38. f5 {[%clk 00:03:22]}
{[%emt 00:01:16]} a5 {[%clk 00:03:59]} {[%emt 00:00:16]} 39. Rg7 {[%clk
00:02:09]} {[%emt 00:01:43]} Kh8 {[%clk 00:04:25]} {[%emt 00:00:04]} 40. f6
{[%clk 00:00:38]} {[%emt 00:02:01]} a4 {[%clk 00:03:25]} {[%emt 00:01:31]} 41.
h5 {[%clk 00:21:56]} {[%emt 00:09:42]} a3 {[%clk 00:19:01]} {[%emt 00:15:25]}
42. Kg6 {[%clk 00:15:04]} {[%emt 00:07:21]} Rg4+ {[%clk 00:18:28]} {[%emt
00:01:03]} 43. Kxh6 {[%clk 00:15:22]} {[%emt 00:00:12]} a2 {[%clk 00:18:49]}
{[%emt 00:00:09]} 44. f7 {[%clk 00:15:13]} {[%emt 00:00:38]} 1-0

[Event "Tournoi de MI de l'Echiquier du Pays de Bray"]
[Site "Gournay-en-Bray, France"]
[Date "2023.05.16"]
[Round "3.2"]
[White "DEFROMONT, Benjamin"]
[Black "HÖGLAUER, Patrick"]
[Result "1-0"]
[TimeControl "1h30/40 + 30 (30s/c)"]
[WhiteTitle "FM"]
[BlackTitle "FM"]
[WhiteFideId "36068829"]
[BlackFideId "1270548"]
[WhiteElo "2347"]
[BlackElo "2280"]

1. e4 {[%clk 01:30:56]} {[%emt 00:00:03]} e5 {[%clk 01:30:55]} {[%emt
00:00:06]} 2. Nf3 {[%clk 01:31:21]} {[%emt 00:00:06]} Nc6 {[%clk 01:31:19]}
{[%emt 00:00:06]} 3. Bb5 {[%clk 01:29:26]} {[%emt 00:02:24]} a6 {[%clk
01:31:33]} {[%emt 00:00:17]} 4. Ba4 {[%clk 01:29:50]} {[%emt 00:00:07]} Nf6
{[%clk 01:31:59]} {[%emt 00:00:04]} 5. O-O {[%clk 01:29:45]} {[%emt 00:00:35]}
Be7 {[%clk 01:31:21]} {[%emt 00:01:08]} 6. Re1 {[%clk 01:29:51]} {[%emt
00:00:23]} b5 {[%clk 01:31:47]} {[%emt 00:00:05]} 7. Bb3 {[%clk 01:30:15]}
{[%emt 00:00:05]} O-O {[%clk 01:31:58]} {[%emt 00:00:19]} 8. c3 {[%clk
01:28:30]} {[%emt 00:02:16]} d5 {[%clk 01:31:13]} {[%emt 00:01:16]} 9. d4
{[%clk 01:28:52]} {[%emt 00:00:08]} Nxe4 {[%clk 01:06:01]} {[%emt 00:25:42]} 10.
dxe5 {[%clk 01:21:21]} {[%emt 00:08:01]} Be6 {[%clk 01:06:11]} {[%emt
00:00:20]} 11. Nbd2 {[%clk 01:13:43]} {[%emt 00:08:07]} Nc5 {[%clk 01:05:33]}
{[%emt 00:01:09]} 12. Bc2 {[%clk 01:06:18]} {[%emt 00:07:55]} d4 {[%clk
01:02:35]} {[%emt 00:03:27]} 13. cxd4 {[%clk 00:54:57]} {[%emt 00:11:51]} Nxd4
{[%clk 01:02:47]} {[%emt 00:00:19]} 14. Nxd4 {[%clk 00:55:18]} {[%emt
00:00:09]} Qxd4 {[%clk 01:03:13]} {[%emt 00:00:04]} 15. Qh5 {[%clk 00:54:44]}
{[%emt 00:01:03]} g6 {[%clk 00:42:16]} {[%emt 00:21:27]} 16. Qh6 {[%clk
00:47:04]} {[%emt 00:08:09]} Bd5 {[%clk 00:40:15]} {[%emt 00:02:32]} 17. Nf1
{[%clk 00:43:46]} {[%emt 00:03:48]} Rfd8 {[%clk 00:35:40]} {[%emt 00:05:05]} 18.
Re3 {[%clk 00:32:38]} {[%emt 00:11:37]} Bf8 {[%clk 00:32:54]} {[%emt 00:03:17]}
19. Qh3 {[%clk 00:32:52]} {[%emt 00:00:15]} Ne6 {[%clk 00:32:11]} {[%emt
00:01:13]} 20. Qg3 {[%clk 00:25:03]} {[%emt 00:08:18]} Bg7 {[%clk 00:21:47]}
{[%emt 00:10:54]} 21. Re1 {[%clk 00:17:54]} {[%emt 00:07:40]} c5 {[%clk
00:10:39]} {[%emt 00:11:39]} 22. Nd2 {[%clk 00:16:45]} {[%emt 00:01:39]} Qf4
{[%clk 00:06:40]} {[%emt 00:04:28]} 23. Qxf4 {[%clk 00:13:50]} {[%emt
00:03:25]} Nxf4 {[%clk 00:07:09]} {[%emt 00:00:01]} 24. Ne4 {[%clk 00:13:50]}
{[%emt 00:00:30]} Ne6 {[%clk 00:04:53]} {[%emt 00:02:46]} 25. f4 {[%clk
00:14:12]} {[%emt 00:00:08]} Nd4 {[%clk 00:03:11]} {[%emt 00:02:13]} 26. Bb1
{[%clk 00:14:27]} {[%emt 00:00:15]} Rac8 {[%clk 00:01:25]} {[%emt 00:02:16]} 27.
Be3 {[%clk 00:14:41]} {[%emt 00:00:17]} Ba8 {[%clk 00:01:09]} {[%emt 00:00:46]}
28. Nd6 {[%clk 00:09:24]} {[%emt 00:05:47]} Rc7 {[%clk 00:00:47]} {[%emt
00:00:52]} 29. a4 {[%clk 00:09:29]} {[%emt 00:00:25]} b4 {[%clk 00:00:40]}
{[%emt 00:00:36]} 30. Bd3 {[%clk 00:09:45]} {[%emt 00:00:14]} a5 {[%clk
00:00:33]} {[%emt 00:00:38]} 31. Rac1 {[%clk 00:08:14]} {[%emt 00:02:02]} Nb3
{[%clk 00:00:32]} {[%emt 00:00:30]} 32. Rcd1 {[%clk 00:08:28]} {[%emt
00:00:15]} Kf8 {[%clk 00:00:31]} {[%emt 00:00:32]} 33. Bc4 {[%clk 00:07:52]}
{[%emt 00:01:06]} Nd4 {[%clk 00:01:00]} {[%emt 00:00:01]} 34. Bxd4 {[%clk
00:07:41]} {[%emt 00:00:41]} cxd4 {[%clk 00:01:29]} 35. Rxd4 {[%clk 00:07:52]}
{[%emt 00:00:19]} Bc6 {[%clk 00:00:37]} {[%emt 00:01:22]} 36. b3 {[%clk
00:07:32]} {[%emt 00:00:51]} Rcd7 {[%clk 00:00:34]} {[%emt 00:00:33]} 37. Red1
{[%clk 00:06:37]} {[%emt 00:01:25]} Ke7 {[%clk 00:00:33]} {[%emt 00:00:31]} 38.
Bxf7 {[%clk 00:04:48]} {[%emt 00:02:19]} g5 {[%clk 00:00:38]} {[%emt 00:00:25]}
39. Bc4 {[%clk 00:04:34]} {[%emt 00:00:43]} gxf4 {[%clk 00:00:36]} {[%emt
00:00:31]} 40. Nf5+ {[%clk 00:03:13]} {[%emt 00:01:51]} Kf8 {[%clk 00:00:47]}
{[%emt 00:00:18]} 41. Rxd7 {[%clk 00:03:36]} {[%emt 00:00:08]} Rxd7 {[%clk
00:00:49]} {[%emt 00:00:28]} 42. Rxd7 {[%clk 00:03:57]} {[%emt 00:00:09]} Bxd7
{[%clk 00:01:18]} {[%emt 00:00:01]} 43. e6 {[%clk 00:04:16]} {[%emt 00:00:10]}
Bxe6 {[%clk 00:22:53]} {[%emt 00:09:25]} 44. Bxe6 {[%clk 00:35:36]} {[%emt
00:00:10]} Bc3 {[%clk 00:22:46]} {[%emt 00:00:37]} 45. Kf2 {[%clk 00:35:56]}
{[%emt 00:00:09]} 1-0

[Event "Tournoi de MI de l'Echiquier du Pays de Bray"]
[Site "Gournay-en-Bray, France"]
[Date "2023.05.16"]
[Round "3.3"]
[White "ROSHKA, Yevgeniy"]
[Black "DGEBUADZE, Alexander"]
[Result "1-0"]
[TimeControl "1h30/40 + 30 (30s/c)"]
[WhiteTitle "IM"]
[BlackTitle "GM"]
[WhiteFideId "14129558"]
[BlackFideId "203882"]
[WhiteElo "2508"]
[BlackElo "2435"]

1. e4 {[%clk 01:27:35]} {[%emt 00:03:16]} e6 {[%clk 01:30:48]} {[%emt
00:00:19]} 2. d4 {[%clk 01:28:01]} {[%emt 00:00:05]} d5 {[%clk 01:31:14]}
{[%emt 00:00:04]} 3. Nc3 {[%clk 01:28:27]} {[%emt 00:00:04]} Bb4 {[%clk
01:31:34]} {[%emt 00:00:09]} 4. e5 {[%clk 01:28:41]} {[%emt 00:00:16]} c5
{[%clk 01:31:51]} {[%emt 00:00:14]} 5. a3 {[%clk 01:28:41]} {[%emt 00:00:30]}
Bxc3+ {[%clk 01:32:13]} {[%emt 00:00:08]} 6. bxc3 {[%clk 01:29:08]} {[%emt
00:00:03]} Nc6 {[%clk 01:26:54]} {[%emt 00:05:49]} 7. Qg4 {[%clk 01:25:26]}
{[%emt 00:04:11]} g6 {[%clk 01:27:12]} {[%emt 00:00:12]} 8. Nf3 {[%clk
01:19:25]} {[%emt 00:06:31]} Qa5 {[%clk 01:27:27]} {[%emt 00:00:15]} 9. Bd2
{[%clk 01:19:49]} {[%emt 00:00:06]} Qa4 {[%clk 01:27:43]} {[%emt 00:00:15]} 10.
Ra2 {[%clk 01:18:45]} {[%emt 00:01:33]} c4 {[%clk 01:15:01]} {[%emt 00:13:13]}
11. h4 {[%clk 01:12:30]} {[%emt 00:06:45]} h6 {[%clk 01:14:37]} {[%emt
00:00:54]} 12. Be2 {[%clk 01:11:25]} {[%emt 00:01:35]} Bd7 {[%clk 01:14:48]}
{[%emt 00:00:20]} 13. Qf4 {[%clk 01:08:43]} {[%emt 00:03:12]} Rh7 {[%clk
01:14:22]} {[%emt 00:00:56]} 14. Nh2 {[%clk 01:08:59]} {[%emt 00:00:15]} O-O-O
{[%clk 01:09:54]} {[%emt 00:04:58]} 15. Ng4 {[%clk 01:09:17]} {[%emt 00:00:11]}
g5 {[%clk 00:58:42]} {[%emt 00:11:42]} 16. Qh2 {[%clk 00:58:49]} {[%emt
00:10:58]} Qb5 {[%clk 00:56:29]} {[%emt 00:02:44]} 17. O-O {[%clk 00:58:32]}
{[%emt 00:00:45]} gxh4 {[%clk 00:55:08]} {[%emt 00:01:51]} 18. Qxh4 {[%clk
00:58:06]} {[%emt 00:00:57]} Qa5 {[%clk 00:54:24]} {[%emt 00:01:14]} 19. Rd1
{[%clk 00:55:11]} {[%emt 00:03:24]} Rf8 {[%clk 00:54:46]} {[%emt 00:00:09]} 20.
Nf6 {[%clk 00:34:44]} {[%emt 00:20:57]} Nxf6 {[%clk 00:55:04]} {[%emt
00:00:12]} 21. exf6 {[%clk 00:34:56]} {[%emt 00:00:18]} Re8 {[%clk 00:54:46]}
{[%emt 00:00:47]} 22. Bh5 {[%clk 00:24:30]} {[%emt 00:10:56]} e5 {[%clk
00:55:00]} {[%emt 00:00:16]} 23. dxe5 {[%clk 00:24:34]} {[%emt 00:00:27]} Rxe5
{[%clk 00:54:46]} {[%emt 00:00:44]} 24. Bf4 {[%clk 00:23:53]} {[%emt 00:01:10]}
Qxc3 {[%clk 00:49:05]} {[%emt 00:06:11]} 25. Bxe5 {[%clk 00:23:41]} {[%emt
00:00:42]} Qxe5 {[%clk 00:49:16]} {[%emt 00:00:18]} 26. c3 {[%clk 00:23:50]}
{[%emt 00:00:21]} Be6 {[%clk 00:42:39]} {[%emt 00:07:07]} 27. Re2 {[%clk
00:23:37]} {[%emt 00:00:43]} Qxc3 {[%clk 00:33:53]} {[%emt 00:09:15]} 28. Bg4
{[%clk 00:20:09]} {[%emt 00:03:58]} Nd8 {[%clk 00:30:50]} {[%emt 00:03:34]} 29.
Rxd5 {[%clk 00:18:04]} {[%emt 00:02:34]} Qc1+ {[%clk 00:30:23]} {[%emt
00:00:56]} 30. Kh2 {[%clk 00:18:28]} {[%emt 00:00:06]} Qf4+ {[%clk 00:30:38]}
{[%emt 00:00:14]} 31. Kh3 {[%clk 00:18:31]} {[%emt 00:00:28]} Kc7 {[%clk
00:18:25]} {[%emt 00:12:44]} 32. Rc5+ {[%clk 00:15:33]} {[%emt 00:03:28]} Kb6
{[%clk 00:11:21]} {[%emt 00:07:34]} 33. Rce5 {[%clk 00:14:34]} {[%emt
00:01:28]} Nc6 {[%clk 00:09:05]} {[%emt 00:02:46]} 34. R5e4 {[%clk 00:10:39]}
{[%emt 00:04:24]} Bxg4+ {[%clk 00:06:33]} {[%emt 00:03:02]} 35. Qxg4 {[%clk
00:11:05]} {[%emt 00:00:04]} Qxf6 {[%clk 00:02:47]} {[%emt 00:04:17]} 36. Rxc4
{[%clk 00:10:35]} {[%emt 00:01:00]} Rg7 {[%clk 00:02:31]} {[%emt 00:00:46]} 37.
Qf4 {[%clk 00:10:52]} {[%emt 00:00:13]} Qg5 {[%clk 00:01:13]} {[%emt 00:01:49]}
38. Rb2+ {[%clk 00:11:05]} {[%emt 00:00:16]} Ka6 {[%clk 00:01:03]} {[%emt
00:00:40]} 39. Ra4+ {[%clk 00:11:29]} {[%emt 00:00:07]} Na5 {[%clk 00:01:10]}
{[%emt 00:00:22]} 40. Qc4+ {[%clk 00:11:54]} {[%emt 00:00:05]} 1-0

[Event "Tournoi de MI de l'Echiquier du Pays de "]
[Site "Gournay-en-Bray, France"]
[Date "2023.05.16"]
[Round "3.4"]
[White "DUBESSAY, Bastien"]
[Black "LEFEBVRE, Hervé"]
[Result "1-0"]
[WhiteElo "2283"]
[BlackElo "2161"]
[PlyCount "145"]
[EventDate "2023.??.??"]
[TimeControl "1/40+30:0"]
[WhiteClock "0:02:40"]
[BlackClock "0:10:09"]

1. e4 {[%emt 0:16:24]} c5 {[%emt 0:03:52]} 2. Nc3 {[%emt 0:00:11]} Nc6 {[%emt
0:00:08]} 3. Bb5 {[%emt 0:00:11]} Nd4 {[%emt 0:00:27]} 4. Bc4 {[%emt 0:00:07]}
Nf6 {[%emt 0:04:40]} 5. Nge2 {[%emt 0:03:38]} e6 {[%emt 0:00:52]} 6. O-O {
[%emt 0:00:29]} a6 {[%emt 0:01:14]} 7. a4 {[%emt 0:00:29]} d5 {[%emt 0:03:56]}
8. exd5 {[%emt 0:00:13]} exd5 {[%emt 0:00:05]} 9. Ba2 {[%emt 0:00:07]} Nxe2+ {
[%emt 0:13:51]} 10. Qxe2+ {[%emt 0:02:08]} Be7 {[%emt 0:00:05]} 11. h3 {[%emt
0:03:17]} O-O {[%emt 0:00:13]} 12. d3 {[%emt 0:13:31]} Be6 {[%emt 0:20:53]} 13.
Bf4 {[%emt 0:03:24]} Qd7 {[%emt 0:00:36]} 14. a5 {[%emt 0:10:38]} d4 {[%emt 0:
06:39]} 15. Bxe6 {[%emt 0:07:27]} fxe6 {[%emt 0:00:15]} 16. Na4 {[%emt 0:00:12]
} Nd5 {[%emt 0:00:13]} 17. Bd2 {[%emt 0:02:18]} Rae8 {[%emt 0:00:46]} 18. b3 {
[%emt 0:04:22]} Bd6 {[%emt 0:00:38]} 19. Rae1 {[%emt 0:04:25]} Bc7 {[%emt 0:05:
42]} 20. Nb2 {[%emt 0:06:40]} Qd6 {[%emt 0:01:33]} 21. g3 {[%emt 0:00:13]} Rf5
{[%emt 0:00:47]} 22. Nc4 {[%emt 0:00:27]} Qd7 {[%emt 0:02:40]} 23. Qe4 {[%emt
0:06:54]} Qf7 {[%emt 0:00:32]} 24. Qg2 {[%emt 0:05:51]} h5 {[%emt 0:02:32]} 25.
Re4 {[%emt 0:01:43]} Rf8 {[%emt 0:00:15]} 26. h4 {[%emt 0:08:54]} Rf3 {[%emt 0:
06:03]} 27. Ree1 {[%emt 0:01:47]} Qg6 {[%emt 0:04:45]} 28. Bg5 {[%emt 0:01:03]}
R3f5 {[%emt 0:02:05]} 29. Qe4 {[%emt 0:04:44]} Re8 {[%emt 0:00:55]} 30. Kg2 {
[%emt 0:00:23]} Qf7 {[%emt 0:00:31]} 31. Bd2 {[%emt 0:01:39]} Kh8 {[%emt 0:00:
36]} 32. Kg1 {[%emt 0:02:46]} Rf8 {[%emt 0:01:17]} 33. Qg2 {[%emt 0:02:50]} Qg6
{[%emt 0:00:37]} 34. Bg5 {[%emt 0:00:30]} Qf7 {[%emt 0:00:06]} 35. Ra1 {[%emt
0:00:39]} Kh7 {[%emt 0:00:46]} 36. Nd2 {[%emt 0:00:27]} Nb4 {[%emt 0:00:42]}
37. Rac1 {[%emt 0:00:54]} Bxa5 {[%emt 0:00:17]} 38. Ne4 {[%emt 0:00:06]} Kh8 {
[%emt 0:00:44]} 39. Nd6 {[%emt 0:00:49]} Qd7 {[%emt 0:00:10]} 40. Nxf5 {[%emt
0:00:10]} Rxf5 {[%emt 0:00:02]} 41. Bd2 {[%emt 0:04:53]} Nc6 {[%emt 0:05:30]}
42. Bxa5 {[%emt 0:01:43]} Nxa5 {[%emt 0:00:40]} 43. Rce1 {[%emt 0:04:07]} Kg8 {
[%emt 0:00:34]} 44. Re2 {[%emt 0:00:20]} Nc6 {[%emt 0:01:22]} 45. Rfe1 {[%emt
0:00:22]} e5 {[%emt 0:07:09]} 46. Re4 {[%emt 0:02:37]} Qf7 {[%emt 0:02:12]} 47.
f4 {[%emt 0:08:20]} exf4 {[%emt 0:00:27]} 48. Rxf4 {[%emt 0:00:02]} Rxf4 {
[%emt 0:05:09]} 49. gxf4 {[%emt 0:00:06]} Nb4 {[%emt 0:00:09]} 50. Qg5 {[%emt
0:05:06]} Nd5 {[%emt 0:00:15]} 51. Qd8+ {[%emt 0:03:06]} Kh7 {[%emt 0:00:04]}
52. Re8 {[%emt 0:00:14]} Nf6 {[%emt 0:03:22]} 53. Rh8+ {[%emt 0:04:48]} Kg6 {
[%emt 0:00:05]} 54. Qd6 {[%emt 0:00:12]} Qd5 {[%emt 0:01:51]} 55. Qxd5 {[%emt
0:01:17]} Nxd5 {[%emt 0:00:04]} 56. Rf8 {[%emt 0:01:59]} Ne3 {[%emt 0:00:32]}
57. Kf2 {[%emt 0:00:32]} Nxc2 {[%emt 0:00:21]} 58. f5+ {[%emt 0:00:04]} Kh7 {
[%emt 0:00:40]} 59. Rf7 {[%emt 0:01:30]} Ne3 {[%emt 0:00:24]} 60. Rxb7 {[%emt
0:01:02]} Nxf5 {[%emt 0:00:05]} 61. Rc7 {[%emt 0:00:14]} Nxh4 {[%emt 0:01:44]}
62. Rxc5 {[%emt 0:00:02]} Kg6 {[%emt 0:01:33]} 63. Rc6+ {[%emt 0:00:05]} Kf5 {
[%emt 0:00:06]} 64. Rxa6 {[%emt 0:00:06]} Kf4 {[%emt 0:00:42]} 65. b4 {[%emt 0:
00:36]} g5 {[%emt 0:00:03]} 66. b5 {[%emt 0:00:13]} g4 {[%emt 0:00:04]} 67.
Rf6+ {[%emt 0:00:19]} Ke5 {[%emt 0:00:50]} 68. Rh6 {[%emt 0:01:55]} g3+ {[%emt
0:00:04]} 69. Kf1 {[%emt 0:00:57]} g2+ {[%emt 0:01:33]} 70. Kf2 {[%emt 0:00:23]
} Nf3 {[%emt 0:00:02]} 71. Kxg2 {[%emt 0:00:27]} Ne1+ {[%emt 0:00:04]} 72. Kg3
{[%emt 0:00:07]} Nxd3 {[%emt 0:00:10]} 73. b6 {[%emt 0:00:08]} 1-0